bitfinex-derivatives/quotes_BNBF0:USTF0_20250904
["timestamp","ask_amount","ask_price","bid_price","bid_amount"]
[1756968725252,0.20550615,846.91,846.27,0.7955957]
[1756968725453,0.20550615,846.91,846.25,0.7955957]
[1756968725652,0.20550615,846.91,846.24,0.7955957]
[1756968726152,0.20550615,846.91,846.25,0.7955957]
[1756968726353,0.20550615,846.91,846.24,0.7955957]
[1756968726553,0.20550615,846.91,846.25,0.7955957]
[1756968728354,0.20550615,846.91,846.24,0.7955957]
[1756968729553,0.20550615,846.91,846.22,0.7955957]
[1756968729751,0.20550615,846.91,846.2,0.7955957]
[1756968730354,0.20550615,846.91,846.19,0.7955957]
[1756968730755,0.20550615,846.91,846.23,0.7955957]
[1756968731056,0.20550615,846.91,846.22,0.7955957]
[1756968731954,0.20550615,846.91,846.23,0.7955957]
[1756968734559,0.20550615,846.91,846.18,0.7955957]
[1756968735461,0.20550615,846.91,846.17,0.7955957]
[1756968735862,0.20550615,846.91,846.16,0.7955957]
[1756968736657,0.20550615,846.91,846.17,0.7955957]
[1756968737763,0.20550615,846.91,846.15,0.7955957]
[1756968738959,0.20550615,846.91,846.04,0.7955957]
[1756968739160,0.20550615,846.91,845.45,0.20553406]
[1756968739161,0.20550615,846.91,846.1,0.7955957]
[1756968740562,0.20550615,846.91,846.11,0.7955957]
[1756968741163,0.20550615,846.91,846.24,0.7955957]
[1756968741362,0.20550615,846.91,846.25,0.7955957]
[1756968741565,0.20550615,846.91,846.22,0.7955957]
[1756968744467,0.79656297,846.89,846.23,0.7955957]
[1756968744671,0.79656297,846.87,846.21,0.7955957]
[1756968745570,0.79656297,846.86,846.2,0.7955957]
[1756968746471,0.79656297,846.85,846.18,0.7955957]
[1756968746768,0.79656297,846.84,846.16,0.7955957]
[1756968747466,0.79656297,846.83,846.17,0.7955957]
[1756968750376,0.79656297,846.82,846.17,0.7955957]
[1756968753777,0.79656297,846.82,846.18,0.7955957]
[1756968754676,0.79656297,846.83,846.18,0.7955957]
[1756968755676,0.79656297,846.82,846.19,0.7955957]
[1756968755979,0.79656297,846.85,846.22,0.7955957]
[1756968756174,0.79656297,846.85,846.08,1.0557657]
[1756968756175,0.79656297,846.9,846.19,0.7955957]
[1756968756379,0.79656297,846.89,846.19,0.7955957]
[1756968756880,0.79656297,846.88,846.18,0.7955957]
[1756968757276,0.79656297,846.89,846.18,0.7955957]
[1756968757879,0.79656297,846.9,846.17,0.7955957]
[1756968758281,0.79656297,846.89,846.18,0.7955957]
[1756968758483,0.79656297,846.82,846.17,0.7955957]
[1756968758679,0.20550615,846.91,845.45,0.20553406]
[1756968758680,0.79656297,846.81,846.16,0.7955957]
[1756968759079,0.20550615,846.91,846.17,0.7955957]
[1756968759484,0.20550615,846.91,846.11,0.7955957]
[1756968760184,0.20550615,846.91,846.12,0.7955957]
[1756968762088,0.20550615,846.91,846.13,0.7955957]
[1756968762584,0.20550615,846.91,846.14,0.7955957]
[1756968765093,0.20550615,846.91,846.15,0.7955957]
[1756968768791,0.20550615,846.91,845.45,0.20553406]
[1756968768792,0.20550615,846.91,846.18,0.7955957]
[1756968769087,0.20550615,846.91,846.19,0.7955957]
[1756968769290,0.79656297,846.9,846.24,0.7955957]
[1756968769487,0.79656297,846.89,846.25,0.7955957]
[1756968770389,0.79656297,846.88,846.26,0.7955957]
[1756968771288,0.79656297,846.89,846.27,0.7955957]
[1756968771686,0.20550615,846.91,846.27,0.7955957]
[1756968772989,0.20550615,846.91,846.32,0.7955957]
[1756968773693,0.20550615,846.91,846.3,0.7955957]
[1756968774791,0.20550615,846.91,846.28,0.7955957]
[1756968781399,0.20550615,846.91,846.21,0.7955957]
[1756968781599,0.20550615,846.91,846.22,0.7955957]
[1756968782199,0.20550615,846.91,846.21,0.7955957]
[1756968782596,0.20550615,846.91,846.22,0.7955957]
[1756968784699,0.20550615,846.91,846.23,0.7955957]
[1756968786899,0.20550615,846.91,846.27,0.7955957]
[1756968787199,0.20550615,846.91,846.28,0.7955957]
[1756968790104,0.20550615,846.91,846.03,1.0557657]
[1756968790105,0.20550615,846.91,846.27,0.7955957]
[1756968790303,0.20550615,846.91,846.28,0.7955957]
[1756968790904,0.20550615,846.91,846.28,0.79584426]
[1756968791403,0.20550615,846.91,845.45,0.20553406]
[1756968791404,0.20550615,846.91,846.35,0.79584426]
[1756968793400,0.20550615,846.91,846.34,0.79584426]
[1756968794304,0.20550615,846.91,846.35,0.79584426]
[1756968795206,0.20550615,846.91,846.34,0.79584426]
[1756968796405,0.20550615,846.91,846.36,0.79584426]
[1756968796603,0.20550615,846.91,846.37,0.79584426]
[1756968798606,0.20550615,846.91,846.36,0.79584426]
[1756968798806,0.20550615,846.91,846.35,0.79584426]
[1756968800405,0.20550615,846.91,846.34,0.79584426]
[1756968801407,0.20550615,846.91,846.17,1.0557657]
[1756968801408,0.20550615,846.91,846.33,0.79584426]
[1756968801807,0.20550615,846.91,846.34,0.79584426]
[1756968802004,0.20550615,846.91,846.34,0.79553134]
[1756968802305,0.20550615,846.91,846.33,0.79553134]
[1756968802904,0.20550615,846.91,846.29,0.79553134]
[1756968803108,0.20550615,846.91,846.28,0.79553134]
[1756968804813,0.20550615,846.91,846.27,0.79553134]
[1756968805012,0.20550615,846.91,846.26,0.79553134]
[1756968806114,0.20550615,846.91,846.25,0.79553134]
[1756968807515,0.20550615,846.91,846.26,0.79553134]
[1756968808413,0.20550615,846.91,846.27,0.79553134]
[1756968808613,0.20550615,846.91,846.26,0.79553134]
[1756968809314,0.20550615,846.91,846.27,0.79553134]
[1756968810416,0.20550615,846.91,846.29,0.79553134]
[1756968811718,0.20550615,846.91,846.3,0.79553134]
[1756968811917,0.20550615,846.91,846.32,0.79553134]
[1756968812314,0.20550615,846.91,846.36,0.79553134]
[1756968812519,0.20550615,846.91,846.35,0.79553134]
[1756968812822,0.20550615,846.91,846.34,0.79553134]
[1756968813318,0.20550615,846.91,846.35,0.79553134]
[1756968817424,0.20550615,846.91,846.36,0.79553134]
[1756968818727,0.20550615,846.91,846.34,0.79553134]
[1756968818922,0.20550615,846.91,846.35,0.79553134]
[1756968821324,0.20550615,846.91,846.36,0.79553134]
[1756968822126,0.20550615,846.91,846.35,0.79553134]
[1756968822627,0.20550615,846.91,846.36,0.79553134]
[1756968824524,0.20550615,846.91,846.33,0.79553134]
[1756968825530,0.20550615,846.91,846.34,0.79553134]
[1756968828732,0.20550615,846.91,846.37,0.79553134]
[1756968829330,0.20550615,846.91,846.38,0.79553134]
[1756968831834,0.20550615,846.91,846.39,0.79553134]
[1756968833931,0.20550615,846.91,846.38,0.79553134]
[1756968834234,0.20550615,846.91,846.39,0.79553134]
[1756968835931,0.20550615,846.91,846.4,0.79553134]
[1756968836136,0.99885792,846.91,846.4,0.79553134]
[1756968836333,0.20550615,846.91,846.39,0.79553134]
[1756968836536,0.99885792,846.91,846.4,0.79553134]
[1756968838338,0.20550615,846.91,846.38,0.79553134]
[1756968839134,0.20550615,846.91,846.37,0.79553134]
[1756968843444,0.20550615,846.91,846.04,1.5836486]
[1756968843445,0.20550615,846.91,846.38,0.79553134]
[1756968848151,0.20550615,846.91,846.39,0.79553134]
[1756968848352,0.20550615,846.91,846.36,0.79553134]
[1756968849049,0.20550615,846.91,846.37,0.79553134]
[1756968850454,0.20550615,846.91,846.38,0.79553134]
[1756968852956,0.20550615,846.91,846.37,0.79553134]
[1756968858358,0.20550615,846.91,846.39,0.79553134]
[1756968858758,0.79335177,846.93,846.39,0.79553134]
[1756968858958,0.20549705,846.79,846.39,0.79553134]
[1756968859958,0.20549705,846.79,846.39,0.7967195]
[1756968862961,0.20549705,846.79,846.41,0.7967195]
[1756968866360,0.20549705,846.79,846.42,0.7967195]
[1756968867461,0.20549705,846.79,846.41,0.7967195]
[1756968869058,0.20549705,846.79,846.35,0.7967195]
[1756968869256,0.79426609,847.11,846.42,0.7967195]
[1756968869461,0.20548006,846.9,846.42,0.7967195]
[1756968871260,0.20548006,846.9,846.41,0.7967195]
[1756968874865,0.79426609,847.12,846.41,0.7967195]
[1756968875066,0.79426609,847.36,846.59,0.7967195]
[1756968875268,0.20544427,847.14,846.64,0.7967195]
[1756968875764,0.79426609,847.53,846.64,0.7967195]
[1756968875965,0.20539395,847.2,846.64,0.7967195]
[1756968876366,0.20539395,847.2,846.38,1.0557657]
[1756968876367,0.79426609,847.58,846.63,0.7967195]
[1756968876568,0.20539213,847.2,846.65,0.7967195]
[1756968876765,0.79426609,847.57,846.65,0.7967195]
[1756968877070,0.2053891,847.2,846.65,0.7967195]
[1756968877267,0.79426609,847.59,846.62,0.7967195]
[1756968877566,0.2053891,847.2,846.63,0.7967195]
[1756968877766,0.79426609,847.59,846.63,0.7967195]
[1756968878171,0.2053891,847.2,846.62,0.7967195]
[1756968878369,0.79426609,847.6,846.61,0.7967195]
[1756968878670,0.2053891,847.36,846.61,0.7967195]
[1756968879269,0.2053891,847.36,846.59,0.7967195]
[1756968879670,0.2053891,847.36,846.6,0.7967195]
[1756968880175,0.2053891,847.36,846.59,0.7967195]
[1756968880373,0.2053891,847.36,846.58,0.7967195]
[1756968881273,0.2053891,847.36,846.56,0.7967195]
[1756968882374,0.2053891,847.36,846.55,0.7967195]
[1756968883778,0.2053891,847.36,846.56,0.7967195]
[1756968884275,0.2053891,847.36,846.55,0.7967195]
[1756968884880,0.2053891,847.36,846.6,0.7967195]
[1756968885279,0.2053891,847.36,846.61,0.7967195]
[1756968885783,0.2053891,847.36,846.6,0.7967195]
[1756968886377,0.2053891,847.36,846.61,0.7967195]
[1756968886578,0.2053891,847.36,846.6,0.7967195]
[1756968888279,0.2053891,847.36,846.59,0.7967195]
[1756968888978,0.2053891,847.36,846.69,0.7967195]
[1756968889183,0.2053891,847.36,846.66,0.7967195]
[1756968890484,0.2053891,847.36,846.67,0.7967195]
[1756968891782,0.2053891,847.36,846.66,0.7967195]
[1756968892583,0.2053891,847.36,846.62,0.7967195]
[1756968892886,0.2053891,847.36,846.66,0.7967195]
[1756968893282,0.2053891,847.36,846.65,0.7967195]
[1756968895181,0.2053891,847.36,846.64,0.7967195]
[1756968897483,0.2053891,847.36,846.63,0.7967195]
[1756968898190,0.79426609,847.88,846.63,0.7967195]
[1756968898387,0.20533881,847.47,846.75,0.7967195]
[1756968898691,0.79426609,847.98,846.75,0.7967195]
[1756968898887,0.20532548,847.47,846.75,0.7967195]
[1756968899086,0.79426609,847.98,846.75,0.7967195]
[1756968899290,0.79426609,847.99,846.74,0.7967195]
[1756968900495,0.20532548,847.68,846.75,0.7967195]
[1756968901195,0.20532548,847.68,846.78,0.7967195]
[1756968901693,0.20532548,847.68,846.84,0.7967195]
[1756968902094,0.20532548,847.68,846.83,0.7967195]
[1756968903195,0.20532548,847.68,846.82,0.7967195]
[1756968903395,0.20532548,847.68,846.83,0.7967195]
[1756968903595,0.20532548,847.68,846.84,0.7967195]
[1756968903795,0.20532548,847.68,846.95,0.7967195]
[1756968903993,0.20532548,847.68,846.97,0.7967195]
[1756968904903,0.20532548,847.68,846.98,0.7967195]
[1756968905300,0.20532548,847.68,846.97,0.7967195]
[1756968906202,0.20532548,847.68,846.96,0.7967195]
[1756968906405,0.20532548,847.68,846.98,0.7967195]
[1756968907803,0.20532548,847.68,846.97,0.7967195]
[1756968909101,0.20532548,847.68,846.96,0.7967195]
[1756968909307,0.20532548,847.68,846.97,0.7967195]
[1756968909508,0.20532548,847.68,846.8,1.0557657]
[1756968909804,0.20532548,847.68,846.96,0.78845033]
[1756968910506,0.20532548,847.68,846.95,0.78845033]
[1756968910707,0.20532548,847.68,846.96,0.78845033]
[1756968911109,0.20532548,847.68,846.95,0.78845033]
[1756968914506,0.20532548,847.68,846.96,0.78845033]
[1756968914807,0.20532548,847.68,846.95,0.78845033]
[1756968915009,0.20532548,847.68,846.96,0.78845033]
[1756968916710,0.20532548,847.68,846.97,0.78845033]
[1756968918511,0.20532548,847.68,846.98,0.78845033]
[1756968919510,0.20532548,847.68,846.97,0.78845033]
[1756968919810,0.20532548,847.68,846.98,0.78845033]
[1756968921112,0.20532548,847.68,846.99,0.78845033]
[1756968921611,0.20532548,847.68,846.97,0.78845033]
[1756968921813,0.20532548,847.68,846.94,0.78845033]
[1756968923212,0.20532548,847.68,846.95,0.78845033]
[1756968924709,0.20532548,847.68,846.96,0.78845033]
[1756968926317,0.20532548,847.68,846.97,0.78845033]
[1756968926517,0.20532548,847.68,846.87,0.78845033]
[1756968928217,0.20532548,847.68,846.88,0.78845033]
[1756968929318,0.20532548,847.68,846.89,0.78845033]
[1756968930515,0.20532548,847.68,846.9,0.78845033]
[1756968931220,0.20532548,847.68,846.91,0.78845033]
[1756968932321,0.20532548,847.68,846.92,0.78845033]
[1756968933319,0.20532548,847.68,846.93,0.78845033]
[1756968933819,0.20532548,847.68,846.92,0.78845033]
[1756968934219,0.20532548,847.68,847.05,0.78845033]
[1756968934719,0.20532548,847.68,847.06,0.78845033]
[1756968934924,0.20532548,847.68,845.96,0.20526493]
[1756968934925,0.20532548,847.68,847.05,0.78845033]
[1756968935125,0.20532548,847.68,847.04,0.78845033]
[1756968935321,0.20532548,847.68,847.05,0.78845033]
[1756968935525,0.20532548,847.68,847.04,0.78845033]
[1756968936222,0.20532548,847.68,847.03,0.78845033]
[1756968936526,0.20532548,847.68,847.06,0.78845033]
[1756968937227,0.20532548,847.68,847.08,0.78845033]
[1756968937420,0.20532548,847.68,847.1,0.78845033]
[1756968941126,0.20532548,847.68,847.12,0.78845033]
[1756968943026,0.20532548,847.68,847.13,0.78845033]
[1756968944033,0.20532548,847.68,847.15,0.78845033]
[1756968944925,0.20532548,847.68,847.18,0.78845033]
[1756968945128,0.20532548,847.68,846.09,2.6359517]
[1756968945129,0.20532548,847.68,847.17,0.78845033]
[1756968945325,0.20532548,847.68,846.09,2.6359517]
[1756968945326,0.20532548,847.68,847.18,0.78845033]
[1756968946130,0.20532548,847.68,847.2,0.78845033]
[1756968946731,0.20532548,847.68,847.21,0.78845033]
[1756968948237,0.20532548,847.68,847.22,0.78845033]
[1756968950035,0.20532548,847.68,847.23,0.78845033]
[1756968952237,0.20532548,847.68,847.24,0.78845033]
[1756968953241,0.20532548,847.68,847.26,0.78845033]
[1756968954236,0.20532548,847.68,847.27,0.78845033]
[1756968955337,0.20532548,847.68,847.1,1.0557657]
[1756968955338,0.20532548,847.68,847.28,0.78845033]
[1756968956041,0.20532548,847.68,847.29,0.78845033]
[1756968956237,0.20532548,847.68,847.3,0.78845033]
[1756968956941,1.0578998,848.26,847.3,0.78845033]
[1756968957137,0.20523527,847.8,847.31,0.78845033]
[1756968957438,1.0578998,848.27,847.32,0.78845033]
[1756968957639,0.20523345,847.8,847.32,0.78845033]
[1756968958038,1.0578998,848.27,847.32,0.78845033]
[1756968958340,0.20523345,847.8,847.33,0.78845033]
[1756968958539,1.0578998,848.24,847.34,0.78845033]
[1756968958744,0.20523345,848.04,847.34,0.78845033]
[1756968960342,0.20523345,848.04,847.33,0.78845033]
[1756968963249,0.20523345,848.04,847.35,0.78845033]
[1756968963946,0.20523345,848.04,847.34,0.78845033]
[1756968964151,0.20523345,848.04,847.35,0.78845033]
[1756968964349,0.20523345,848.04,847.34,0.78845033]
[1756968965146,0.20523345,848.04,847.33,0.78845033]
[1756968966245,0.20523345,848.04,847.34,0.78845033]
[1756968966451,0.20523345,848.04,847.35,0.78845033]
[1756968966949,0.20523345,848.04,846.1,3.6903325]
[1756968966950,0.20523345,848.04,847.33,0.78845033]
[1756968967549,0.20523345,848.04,847.32,0.78845033]
[1756968968157,0.20523345,848.04,847.31,0.78845033]
[1756968970756,0.20523345,848.04,847.3,0.78845033]
[1756968971055,0.20523345,848.04,847.29,0.78845033]
[1756968973861,0.20523345,848.04,847.31,0.78845033]
[1756968974462,0.20523345,848.04,847.32,0.78845033]
[1756968976158,0.20523345,848.04,847.33,0.78845033]
[1756968977061,0.20523345,848.04,847.36,0.78845033]
[1756968977758,0.20523345,848.04,847.35,0.78845033]
[1756968978158,0.20523345,848.04,847.36,0.78845033]
[1756968978559,0.20523345,848.04,847.25,0.78845033]
[1756968978758,0.20523345,848.04,846.15,3.6903325]
[1756968978759,0.20523345,848.04,847.17,0.78845033]
[1756968979063,0.20523345,848.04,847.16,0.78845033]
[1756968979266,0.20523345,848.04,847.15,0.78845033]
[1756968979763,0.20523345,848.04,847.16,0.78845033]
[1756968980858,0.20523345,848.04,846.95,1.0557657]
[1756968980859,0.20523345,848.04,847.15,0.78845033]
[1756968981061,0.20523345,848.04,847.11,0.78845033]
[1756968983171,0.20523345,848.04,847.12,0.78845033]
[1756968984669,1.0578998,848.17,847.12,0.78845033]
[1756968984969,1.0578998,848.17,847.13,0.78845033]
[1756968987069,1.0578998,848.17,847.14,0.78845033]
[1756968987672,1.0578998,848.16,847.13,0.78845033]
[1756968987870,1.0578998,848.16,847.12,0.78845033]
[1756968988568,1.0578998,848.15,847.12,0.78845033]
[1756968988869,0.20527946,847.9,847.12,0.78845033]
[1756968989169,0.20527946,847.9,847.11,0.78845033]
[1756968990175,0.20527946,847.9,847.12,0.78845033]
[1756968990677,0.20527946,847.9,847.15,0.78845033]
[1756968991576,0.20527946,847.9,847.16,0.78845033]
[1756968992474,0.20527946,847.9,847.15,0.78845033]
[1756968993188,0.20527946,847.9,847.16,0.78845033]
[1756968993575,0.20527946,847.9,847.13,0.78845033]
[1756968993775,0.20527946,847.9,846.25,0.20527946]
[1756968993776,0.20527946,847.9,847.04,0.78845033]
[1756968994075,0.20527946,847.9,847.02,0.78845033]
[1756968994478,0.20527946,847.9,846.98,0.78845033]
[1756968995281,0.20527946,847.9,846.95,0.78845033]
[1756968996286,0.20527946,847.9,846.94,0.78845033]
[1756968997287,0.20527946,847.9,846.93,0.78845033]
[1756968998487,0.20527946,847.9,846.88,0.78845033]
[1756968999187,0.20527946,847.9,846.87,0.78845033]
[1756968999387,0.20527946,847.9,846.86,0.78845033]
[1756969001189,0.20527946,847.9,846.87,0.78845033]
[1756969001388,0.20527946,847.9,846.86,0.78845033]
[1756969002389,0.20527946,847.9,846.65,1.0557657]
[1756969002390,0.20527946,847.9,846.85,0.78845033]
[1756969003391,0.20527946,847.9,846.84,0.78845033]
[1756969004191,0.20527946,847.9,846.86,0.78845033]
[1756969004888,0.20527946,847.9,846.87,0.78845033]
[1756969005092,0.20527946,847.9,846.88,0.78845033]
[1756969007396,0.20527946,847.9,846.87,0.78845033]
[1756969007797,0.20527946,847.9,846.88,0.78845033]
[1756969008197,0.20527946,847.9,846.87,0.78845033]
[1756969008399,1.0578998,847.86,846.9,0.78845033]
[1756969009398,1.0578998,847.87,846.9,0.78845033]
[1756969011001,1.0578998,847.87,846.89,0.78845033]
[1756969011995,1.0578998,847.87,846.89,0.79252364]
[1756969012400,1.0578998,847.88,846.89,0.79252364]
[1756969014303,1.0578998,847.88,846.88,0.79252364]
[1756969015400,1.0578998,847.89,846.88,0.79252364]
[1756969020212,0.20527946,847.9,846.86,0.79252364]
[1756969021918,0.20527946,847.9,846.87,0.79252364]
[1756969023117,0.20527946,847.9,846.85,0.79252364]
[1756969023417,0.20527946,847.9,846.74,0.79252364]
[1756969024719,0.20527946,847.9,846.53,1.0557657]
[1756969025019,0.20527946,847.9,846.74,0.79239561]
[1756969025919,0.20527946,847.9,846.73,0.79239561]
[1756969027416,0.20527946,847.9,846.74,0.79239561]
[1756969030322,0.20527946,847.9,846.75,0.79239561]
[1756969033219,0.20527946,847.9,846.78,0.79239561]
[1756969033418,0.20527946,847.9,846.81,0.79239561]
[1756969033419,1.0578998,847.85,846.81,0.79239561]
[1756969034521,1.0578998,847.82,846.83,0.79239561]
[1756969035317,1.0578998,847.81,846.83,0.79239561]
[1756969035521,1.0578998,847.81,846.84,0.79239561]
[1756969035721,1.0578998,847.78,846.85,0.79239561]
[1756969036216,1.0578998,847.77,846.87,0.79239561]
[1756969036422,1.0578998,847.76,846.86,0.79239561]
[1756969037425,1.0578998,847.75,846.88,0.79239561]
[1756969037625,1.0578998,847.74,846.88,0.79239561]
[1756969038322,1.0578998,847.73,846.89,0.79239561]
[1756969039227,1.0578998,847.72,846.9,0.79239561]
[1756969039729,1.0578998,847.72,846.76,1.0557657]
[1756969039923,1.0578998,847.72,846.9,0.79404187]
[1756969040325,1.0578998,847.73,846.9,0.79404187]
[1756969040529,0.20527946,847.9,846.85,0.79404187]
[1756969040530,1.0578998,847.85,846.85,0.79404187]
[1756969041229,1.0578998,847.84,846.85,0.79404187]
[1756969042429,1.0578998,847.84,846.86,0.79404187]
[1756969042729,1.0578998,847.85,846.85,0.79404187]
[1756969043627,0.20527946,847.9,846.77,0.79404187]
[1756969044027,0.20527946,847.9,846.79,0.79404187]
[1756969044231,0.20527946,847.9,846.78,0.79404187]
[1756969044427,0.20527946,847.9,846.79,0.79404187]
[1756969045429,0.20527946,847.9,846.8,0.79404187]
[1756969046235,0.20527946,847.9,846.79,0.79404187]
[1756969047334,0.20527946,847.9,846.8,0.79404187]
[1756969047535,0.20527946,847.9,846.77,0.79404187]
[1756969048738,0.20527946,847.9,846.81,0.79404187]
[1756969048940,0.20527946,847.9,846.8,0.79404187]
[1756969049243,0.20527946,847.9,846.81,0.79404187]
[1756969050437,0.20527946,847.9,846.82,0.79404187]
[1756969050941,0.20527946,847.9,846.25,0.20527946]
[1756969050942,1.0578998,847.82,846.81,0.79404187]
[1756969052440,1.0578998,847.81,846.82,0.79404187]
[1756969053341,1.0578998,847.8,846.83,0.79404187]
[1756969054043,0.79445776,847.58,846.82,0.79404187]
[1756969054245,0.79445776,847.58,846.83,0.79404187]
[1756969054644,0.79445776,847.56,846.81,0.79404187]
[1756969058242,0.79445776,847.55,846.81,0.79404187]
[1756969058746,0.79445776,847.47,846.87,0.79404187]
[1756969058946,0.79445776,847.48,846.86,0.79404187]
[1756969060245,0.79445776,847.49,846.86,0.79404187]
[1756969060446,0.79445776,847.47,846.86,0.79404187]
[1756969060643,0.79445776,847.47,846.87,0.79404187]
[1756969060847,0.79445776,847.46,846.87,0.79404187]
[1756969061040,0.79445776,847.63,846.8,0.79404187]
[1756969061243,0.79445776,847.63,846.79,0.79404187]
[1756969061944,0.79445776,847.65,846.81,0.79404187]
[1756969062443,0.79445776,847.66,846.82,0.79404187]
[1756969066453,0.79445776,847.7,846.81,0.79404187]
[1756969066754,0.79445776,847.76,846.87,0.79404187]
[1756969066954,0.20527946,847.9,846.89,0.79404187]
[1756969066955,0.79445776,847.77,846.89,0.79404187]
[1756969067355,0.79445776,847.69,846.94,0.79404187]
[1756969068955,0.79445776,847.68,846.95,0.79404187]
[1756969074756,0.79445776,847.69,846.94,0.79404187]
[1756969076567,0.79445776,847.63,846.98,0.79404187]
[1756969077965,0.20527946,847.9,846.99,0.79404187]
[1756969077966,0.79445776,847.62,846.99,0.79404187]
[1756969078672,0.79445776,847.61,847.0,0.79404187]
[1756969079368,0.79445776,847.62,846.99,0.79404187]
[1756969084773,0.79445776,847.6,847.0,0.79404187]
[1756969084975,0.79445776,847.59,847.0,0.79404187]
[1756969087269,0.79445776,847.6,847.0,0.79404187]
[1756969087875,0.79445776,847.59,847.01,0.79404187]
[1756969088375,0.79445776,847.59,847.0,0.79404187]
[1756969088675,0.79445776,847.58,847.01,0.79404187]
[1756969089174,0.79445776,847.56,847.02,0.79404187]
[1756969090977,0.79445776,847.57,847.02,0.79404187]
[1756969098182,0.79445776,847.67,846.91,0.79404187]
[1756969098479,0.79445776,847.64,846.88,0.79404187]
[1756969098780,0.79445776,847.6,846.84,0.79404187]
[1756969098980,0.79445776,847.63,846.79,0.79404187]
[1756969100279,0.79445776,847.64,846.79,0.79404187]
[1756969100979,0.79445776,847.64,846.55,1.0557657]
[1756969100980,0.79445776,847.64,846.8,0.79404187]
[1756969101282,0.79445776,847.64,846.79,0.79404187]
[1756969103280,0.79445776,847.65,846.79,0.79404187]
[1756969106488,0.79445776,847.62,846.81,0.79404187]
[1756969107290,0.79445776,847.6,846.82,0.79404187]
[1756969108189,0.79445776,847.59,846.83,0.79404187]
[1756969108390,0.79445776,847.59,846.82,0.79404187]
[1756969108685,0.79445776,847.59,846.83,0.79404187]
[1756969108891,0.79445776,847.5,846.89,0.79404187]
[1756969110592,0.79445776,847.51,846.88,0.79404187]
[1756969113694,0.79445776,847.49,846.89,0.79404187]
[1756969114195,0.79445776,847.49,846.9,0.79404187]
[1756969114794,0.79445776,847.49,846.89,0.79404187]
[1756969115490,0.79445776,847.5,846.89,0.79404187]
[1756969115888,0.79445776,847.56,846.84,0.79404187]
[1756969117396,0.79445776,847.56,846.85,0.79404187]
[1756969118595,0.79445776,847.56,846.84,0.79404187]
[1756969118895,0.79445776,847.63,846.8,0.79404187]
[1756969120891,0.20527946,847.9,846.25,0.20527946]
[1756969120892,0.79445776,847.65,846.79,0.79404187]
[1756969123902,0.79445776,847.69,846.76,0.79404187]
[1756969124603,0.79445776,847.68,846.76,0.79404187]
[1756969125200,0.79445776,847.69,846.76,0.79404187]
[1756969125805,0.79445776,847.68,846.77,0.79404187]
[1756969126006,0.79445776,847.69,846.76,0.79404187]
[1756969128708,0.79445776,847.68,846.77,0.79404187]
[1756969129004,0.79445776,847.7,846.75,0.79404187]
[1756969129703,0.79445776,847.7,846.76,0.79404187]
[1756969129909,0.79445776,847.69,846.75,0.79404187]
[1756969130109,0.79445776,847.7,846.74,0.79404187]
[1756969130312,0.79445776,847.66,846.7,0.79404187]
[1756969130508,0.79445776,847.63,846.69,0.79404187]
[1756969131013,0.79445776,847.61,846.7,0.79404187]
[1756969131210,0.79445776,847.61,846.69,0.79404187]
[1756969132409,0.79445776,847.59,846.7,0.79404187]
[1756969133309,0.79445776,847.57,846.71,0.79404187]
[1756969134409,0.79445776,847.58,846.71,0.79404187]
[1756969135114,0.79445776,847.58,846.7,0.79404187]
[1756969136016,0.79445776,847.57,846.69,0.79404187]
[1756969136214,0.79445776,847.51,846.68,0.79404187]
[1756969137218,0.79445776,847.46,846.7,0.79404187]
[1756969137620,0.79445776,847.42,846.65,0.79404187]
[1756969138421,0.79445776,847.41,846.63,0.79404187]
[1756969139122,0.79445776,847.41,846.62,0.79404187]
[1756969139322,0.79445776,847.41,846.63,0.79404187]
[1756969140921,0.79445776,847.43,846.63,0.79404187]
[1756969141121,1.0578998,847.64,846.42,1.0557657]
[1756969141326,0.79294516,847.43,846.6,0.79497914]
[1756969141621,0.79294516,847.43,846.14,0.20542184]
[1756969141622,0.79294516,847.43,846.59,0.79497914]
[1756969142123,0.79294516,847.44,846.59,0.79497914]
[1756969143122,0.79294516,847.44,846.58,0.79497914]
[1756969144123,0.79294516,847.45,846.58,0.79497914]
[1756969145328,0.79294516,847.44,846.58,0.79497914]
[1756969145921,0.79294516,847.42,846.58,0.79497914]
[1756969146724,0.79294516,847.41,846.59,0.79497914]
[1756969147026,0.79294516,847.39,846.57,0.79497914]
[1756969147228,0.79294516,847.4,846.57,0.79497914]
[1756969149126,0.79294516,847.4,846.56,0.79497914]
[1756969150830,0.79294516,847.37,846.58,0.79497914]
[1756969151031,0.79294516,847.34,846.61,0.79497914]
[1756969152033,0.79294516,847.37,846.59,0.79497914]
[1756969152233,0.79294516,847.35,846.57,0.79497914]
[1756969153833,0.79294516,847.34,846.58,0.79497914]
[1756969154236,1.0578998,847.5,846.14,0.20542184]
[1756969154237,0.79294516,847.37,846.56,0.79497914]
[1756969155337,0.79294516,847.36,846.56,0.79497914]
[1756969158237,0.79294516,847.35,846.56,0.79497914]
[1756969159133,1.0578998,847.52,846.56,0.79497914]
[1756969159134,0.79294516,847.36,846.56,0.79497914]
[1756969159640,0.79294516,847.36,846.55,0.79497914]
[1756969160440,0.79294516,847.37,846.55,0.79497914]
[1756969160637,0.79294516,847.37,846.37,1.0557657]
[1756969160638,0.79294516,847.34,846.52,0.79497914]
[1756969161238,0.79294516,847.34,846.34,1.0557657]